Department,Entity,Date of Payment,Expense Type,Expense Area,Supplier,Transaction Number,Amount,Description,Supplier Postcode
"Department for Business, Innovation and Skills",UK Shared Business Services Ltd,01/08/2022,Telecoms - Land Line Rental,Production Services,British Telecom Plc (BT),99772291,"12,551.36",SR11199494 REGULAR CHARGES 1 JUL 22-31 JUL 22,S98 1BT
"Department for Business, Innovation and Skills",UK Shared Business Services Ltd,01/08/2022,GPC Clearing - SSC,Balance Sheet,Unspecified,99774618,-109.9,Unspecified,HOME
"Department for Business, Innovation and Skills",UK Shared Business Services Ltd,01/08/2022,GPC Sundry Expenditure,D&I Management,Unspecified,99774618,109.9,GPC_Miscellaneous GPC Expenditure,HOME
"Department for Business, Innovation and Skills",UK Shared Business Services Ltd,01/08/2022,Consultancy Services,"Risk, Information & Security Compliance",Risk Evolves Ltd,99776314,"1,224.00",Consultancy Services,CV31 1XT
"Department for Business, Innovation and Skills",UK Shared Business Services Ltd,01/08/2022,Consultancy Services,"Risk, Information & Security Compliance",Risk Evolves Ltd,99776314,816,Consultancy Services,CV31 1XT
"Department for Business, Innovation and Skills",UK Shared Business Services Ltd,01/08/2022,Contract Staff,Production Services,Alexander Mann Solutions Ltd,99776499,"3,465.30",Recruitment Services,EC2N 3AQ
"Department for Business, Innovation and Skills",UK Shared Business Services Ltd,01/08/2022,T&S - Parking Tolls Congestion Charges,D&I Digital,Unspecified,99776585,14,"Parking, Tolls, Congestion Charge",HOME
"Department for Business, Innovation and Skills",UK Shared Business Services Ltd,01/08/2022,T&S - Accommodation,Contact Centres,Unspecified,99776586,105,Accommodation - Hotels Elsewhere Actuals,HOME
"Department for Business, Innovation and Skills",UK Shared Business Services Ltd,01/08/2022,T&S - Subsistence,Contact Centres,Unspecified,99776586,34.49,Evening Meal (Actuals),HOME
"Department for Business, Innovation and Skills",UK Shared Business Services Ltd,01/08/2022,T&S - Subsistence,Contact Centres,Unspecified,99776586,7.8,Lunch (Actuals),HOME
"Department for Business, Innovation and Skills",UK Shared Business Services Ltd,01/08/2022,Other Staff Benefits,People,Amazon EU SARL,99777016,150,ZZ-Employee Benefits,EC2A 2FA
"Department for Business, Innovation and Skills",UK Shared Business Services Ltd,01/08/2022,Contract Staff,Production Services,Alexander Mann Solutions Ltd,99777028,"2,648.52",Recruitment Services,EC2N 3AQ
"Department for Business, Innovation and Skills",UK Shared Business Services Ltd,01/08/2022,Contract Staff,Project Office,Alexander Mann Solutions Ltd,99777031,"3,649.14",Recruitment Services,EC2N 3AQ
"Department for Business, Innovation and Skills",UK Shared Business Services Ltd,01/08/2022,Contract Staff,Corporate HR,Alexander Mann Solutions Ltd,99777033,"3,024.29",Recruitment Services,EC2N 3AQ
"Department for Business, Innovation and Skills",UK Shared Business Services Ltd,01/08/2022,Contract Staff,SHARP,Alexander Mann Solutions Ltd,99777038,"3,387.66",Recruitment Services,EC2N 3AQ
"Department for Business, Innovation and Skills",UK Shared Business Services Ltd,02/08/2022,Computing Consumables,Production Services,Banner Group Ltd,99762060,86.23,Computer Consumables,SWAREHOUSEONLY
"Department for Business, Innovation and Skills",UK Shared Business Services Ltd,02/08/2022,Recruitment Costs,People,Onefix Recruitment Ltd,99774855,"26,400.00",Recruitment Services,PO3 5EJ
"Department for Business, Innovation and Skills",UK Shared Business Services Ltd,02/08/2022,Staff Training,HRSD Recoverables,ASK Europe PLC,99776600,840,Training,MK43 0BT
"Department for Business, Innovation and Skills",UK Shared Business Services Ltd,02/08/2022,Staff Training,HRSD Recoverables,ASK Europe PLC,99776601,840,Training,MK43 0BT
"Department for Business, Innovation and Skills",UK Shared Business Services Ltd,02/08/2022,Staff Training,HRSD Recoverables,ASK Europe PLC,99776603,840,Training,MK43 0BT
"Department for Business, Innovation and Skills",UK Shared Business Services Ltd,02/08/2022,Staff Training,HRSD Recoverables,ASK Europe PLC,99776608,504,Training,MK43 0BT
"Department for Business, Innovation and Skills",UK Shared Business Services Ltd,02/08/2022,Staff Training,HRSD Recoverables,ASK Europe PLC,99776608,504,Training,MK43 0BT
"Department for Business, Innovation and Skills",UK Shared Business Services Ltd,02/08/2022,T&S - Mileage,Contact Centres,Unspecified,99778768,24.8,Mileage - Bicycle (excl Home to Office),HOME
"Department for Business, Innovation and Skills",UK Shared Business Services Ltd,02/08/2022,T&S - Mileage,Contact Centres,Unspecified,99778768,99,Mileage - Car (excl Home to Office),HOME
"Department for Business, Innovation and Skills",UK Shared Business Services Ltd,02/08/2022,Health & Safety (inc. Medicals & Opticians),Finance Operations 1,Unspecified,99778769,80,Medical Fees & Vaccinations (Actuals),HOME
"Department for Business, Innovation and Skills",UK Shared Business Services Ltd,02/08/2022,T&S - Subsistence,Resourcing,Unspecified,99778770,15.4,Evening Meal (Actuals),HOME
"Department for Business, Innovation and Skills",UK Shared Business Services Ltd,02/08/2022,T&S - Subsistence,Resourcing,Unspecified,99778770,19,Lunch (Actuals),HOME
"Department for Business, Innovation and Skills",UK Shared Business Services Ltd,02/08/2022,T&S - Vehicle Hire,Resourcing,Unspecified,99778770,39.99,Vehicle Hire/Rental/Fuel (Actuals),HOME
"Department for Business, Innovation and Skills",UK Shared Business Services Ltd,02/08/2022,UK - Professional Memberships & Subscriptions,Accounting,Unspecified,99778771,175,Professional Subscriptions (Actuals),HOME
"Department for Business, Innovation and Skills",UK Shared Business Services Ltd,02/08/2022,T&S - Subsistence,Resourcing,Unspecified,99778772,16.45,Evening Meal (Actuals),HOME
"Department for Business, Innovation and Skills",UK Shared Business Services Ltd,02/08/2022,T&S - Subsistence,Resourcing,Unspecified,99778772,13.7,Lunch (Actuals),HOME
"Department for Business, Innovation and Skills",UK Shared Business Services Ltd,02/08/2022,T&S - Vehicle Hire,Resourcing,Unspecified,99778772,67.65,Vehicle Hire/Rental/Fuel (Actuals),HOME
"Department for Business, Innovation and Skills",UK Shared Business Services Ltd,03/08/2022,Health & Safety (inc. Medicals & Opticians),Facilities,AM Health & Safety Ltd,99776592,189,Professional Services,SN5 6BD
"Department for Business, Innovation and Skills",UK Shared Business Services Ltd,03/08/2022,T&S - Vehicle Hire,HR Ops & Specialists,Enterprise Rent-A-Car UK Ltd,99777923,83.87, 26/7/22-28/7/22,GL2 5DA
"Department for Business, Innovation and Skills",UK Shared Business Services Ltd,03/08/2022,T&S - Vehicle Hire,HR Ops & Specialists,Enterprise Rent-A-Car UK Ltd,99777923,16.77,SR11216076 & SR11216074 MONTHLY CAR RENTAL,GL2 5DA
"Department for Business, Innovation and Skills",UK Shared Business Services Ltd,03/08/2022,T&S - Parking Tolls Congestion Charges,Operational Excellence,Unspecified,99778119,30,"Parking, Tolls, Congestion Charge",HOME
"Department for Business, Innovation and Skills",UK Shared Business Services Ltd,03/08/2022,Health & Safety (inc. Medicals & Opticians),"D&I Digital, Data & Analytics",Unspecified,99778120,25,Medical Fees & Vaccinations (Actuals),HOME
"Department for Business, Innovation and Skills",UK Shared Business Services Ltd,03/08/2022,Contract Staff,Production Services,Hays Specialist Recruitment Ltd,99778957,"7,469.39",Recruitment Services,KT3 4QF
"Department for Business, Innovation and Skills",UK Shared Business Services Ltd,03/08/2022,Contract Staff,Production Services,Hays Specialist Recruitment Ltd,99778958,"6,170.36",Recruitment Services,KT3 4QF
"Department for Business, Innovation and Skills",UK Shared Business Services Ltd,03/08/2022,Contract Staff,Production Services,Hays Specialist Recruitment Ltd,99778962,"6,819.88",Recruitment Services,KT3 4QF
"Department for Business, Innovation and Skills",UK Shared Business Services Ltd,03/08/2022,Contract Staff,Production Services,Hays Specialist Recruitment Ltd,99778970,"6,170.36",Recruitment Services,KT3 4QF
"Department for Business, Innovation and Skills",UK Shared Business Services Ltd,03/08/2022,Contract Staff,Production Services,Hays Specialist Recruitment Ltd,99778971,"6,819.88",Recruitment Services,KT3 4QF
"Department for Business, Innovation and Skills",UK Shared Business Services Ltd,03/08/2022,Contract Staff,Production Services,Hays Specialist Recruitment Ltd,99778973,"6,170.36",Recruitment Services,KT3 4QF
"Department for Business, Innovation and Skills",UK Shared Business Services Ltd,04/08/2022,T&S - Other Charges,Tier 1 ROE Transactions,Unspecified,99768074,91.97,Home-working Equipment,HOME
"Department for Business, Innovation and Skills",UK Shared Business Services Ltd,04/08/2022,T&S - Mileage,Partnership Management,Unspecified,99778438,132,Mileage - Car Allowance,HOME
"Department for Business, Innovation and Skills",UK Shared Business Services Ltd,04/08/2022,T&S - Subsistence,Partnership Management,Unspecified,99778438,6.35,Breakfast (Actuals),HOME
"Department for Business, Innovation and Skills",UK Shared Business Services Ltd,04/08/2022,T&S - Subsistence,Partnership Management,Unspecified,99778438,100,Evening Meal (Actuals),HOME
"Department for Business, Innovation and Skills",UK Shared Business Services Ltd,04/08/2022,T&S - Subsistence,Partnership Management,Unspecified,99778438,19.25,Lunch (Actuals),HOME
"Department for Business, Innovation and Skills",UK Shared Business Services Ltd,04/08/2022,T&S - Other Charges,Contact Centres,Unspecified,99778440,80,Miscellaneous (Actuals),HOME
"Department for Business, Innovation and Skills",UK Shared Business Services Ltd,04/08/2022,Recruitment Costs,Corporate HR,Everwell Occupational Health Ltd,99779135,462,Professional Services,CW11 3AE
"Department for Business, Innovation and Skills",UK Shared Business Services Ltd,05/08/2022,Staff Training,People,ILX Group plc,99770059,974.4,Training,RG12 1WA
"Department for Business, Innovation and Skills",UK Shared Business Services Ltd,05/08/2022,T&S - Subsistence,D&I Operations,Unspecified,99774290,27.63,Lunch (Actuals),HOME
"Department for Business, Innovation and Skills",UK Shared Business Services Ltd,05/08/2022,Payroll accruals,People,MyCSP Ltd,99778076,109.3,Professional Services,SK8 7BS
"Department for Business, Innovation and Skills",UK Shared Business Services Ltd,05/08/2022,Data Storage & Recovery,Finance Operations 1,The Maltings Document Storage Solutions Ltd,99778102,332.06,Computing Services,CF24 5EZ
"Department for Business, Innovation and Skills",UK Shared Business Services Ltd,05/08/2022,Computing Consumables,Production Services,Probrand Ltd,99779205,578.4,Computer Consumables,SMARTFORM
"Department for Business, Innovation and Skills",UK Shared Business Services Ltd,05/08/2022,Computing Consumables,Production Services,Probrand Ltd,99779205,111.32,Computer Consumables,SMARTFORM
"Department for Business, Innovation and Skills",UK Shared Business Services Ltd,05/08/2022,Contract Staff,Production Services,Proventeq Limited,99779482,"62,034.00",Computer Consumables,RG6 6BU
"Department for Business, Innovation and Skills",UK Shared Business Services Ltd,05/08/2022,Contract Staff,Corporate HR,Alexander Mann Solutions Ltd,99779639,"7,560.72",Recruitment Services,EC2N 3AQ
"Department for Business, Innovation and Skills",UK Shared Business Services Ltd,05/08/2022,Contract Staff,Project Office,Alexander Mann Solutions Ltd,99779640,"7,298.28",Recruitment Services,EC2N 3AQ
"Department for Business, Innovation and Skills",UK Shared Business Services Ltd,05/08/2022,Contract Staff,Production Services,Alexander Mann Solutions Ltd,99779642,"2,648.52",Recruitment Services,EC2N 3AQ
"Department for Business, Innovation and Skills",UK Shared Business Services Ltd,05/08/2022,T&S - Parking Tolls Congestion Charges,Operational Excellence,Unspecified,99779662,10,"Parking, Tolls, Congestion Charge",HOME
"Department for Business, Innovation and Skills",UK Shared Business Services Ltd,05/08/2022,T&S - Parking Tolls Congestion Charges,Operational Excellence,Unspecified,99779663,10,"Parking, Tolls, Congestion Charge",HOME
"Department for Business, Innovation and Skills",UK Shared Business Services Ltd,05/08/2022,Contract Staff,Production Services,Alexander Mann Solutions Ltd,99779921,"3,465.30",Recruitment Services,EC2N 3AQ
"Department for Business, Innovation and Skills",UK Shared Business Services Ltd,05/08/2022,Contract Staff,SHARP,Alexander Mann Solutions Ltd,99779923,"3,387.66",Recruitment Services,EC2N 3AQ
"Department for Business, Innovation and Skills",UK Shared Business Services Ltd,08/08/2022,GPC Clearing - SSC,Balance Sheet,Unspecified,99778439,-90.85,Unspecified,HOME
"Department for Business, Innovation and Skills",UK Shared Business Services Ltd,08/08/2022,Health & Safety (inc. Medicals & Opticians),Facilities,Unspecified,99778439,90.85,GPC_Health & Safety,HOME
"Department for Business, Innovation and Skills",UK Shared Business Services Ltd,08/08/2022,Consultancy Services,Production Services,Premiertec Consulting Ltd t/a Claremont,99779134,"26,932.50","Consultancy and Professional Services to develop two key work areas around API re-development and re-use, and automation of features connected to the primary and sub-processes associated with the SML process. Also included: BAU, CIs and CRs",NE1 3DY
"Department for Business, Innovation and Skills",UK Shared Business Services Ltd,08/08/2022,Computing Consumables,D&I Management,Unspecified,99779658,124.68,GPC_Computer Consumables,HOME
"Department for Business, Innovation and Skills",UK Shared Business Services Ltd,08/08/2022,GPC Clearing - SSC,Balance Sheet,Unspecified,99779658,-124.68,Unspecified,HOME
"Department for Business, Innovation and Skills",UK Shared Business Services Ltd,08/08/2022,Computing Consumables,D&I Management,Unspecified,99779659,160.74,GPC_Computer Consumables,HOME
"Department for Business, Innovation and Skills",UK Shared Business Services Ltd,08/08/2022,GPC Clearing - SSC,Balance Sheet,Unspecified,99779659,-160.74,Unspecified,HOME
"Department for Business, Innovation and Skills",UK Shared Business Services Ltd,08/08/2022,Computing Consumables,D&I Management,Unspecified,99779660,29.88,GPC_Computer Consumables,HOME
"Department for Business, Innovation and Skills",UK Shared Business Services Ltd,08/08/2022,GPC Clearing - SSC,Balance Sheet,Unspecified,99779660,-29.88,Unspecified,HOME
"Department for Business, Innovation and Skills",UK Shared Business Services Ltd,08/08/2022,T&S - Parking Tolls Congestion Charges,Corporate Finance,Unspecified,99780260,10,"Parking, Tolls, Congestion Charge",HOME
"Department for Business, Innovation and Skills",UK Shared Business Services Ltd,08/08/2022,T&S - Other Charges,SIAM,Unspecified,99780261,33.35,Miscellaneous (Actuals),HOME
"Department for Business, Innovation and Skills",UK Shared Business Services Ltd,08/08/2022,Recruitment Costs,Corporate HR,Agenda Resource Management Ltd,99780743,261.13,Professional Services,HU12 8YJ
"Department for Business, Innovation and Skills",UK Shared Business Services Ltd,09/08/2022,Contract Staff,Professional Services,Hays Specialist Recruitment Ltd,99774567,"12,402.00",Recruitment Services,KT3 4QF
"Department for Business, Innovation and Skills",UK Shared Business Services Ltd,09/08/2022,Hardware/Software Maintenance,Production Services,Bytes Software Services Ltd,99778083,"5,205.97",Computer Consumables,KT22 7TW
"Department for Business, Innovation and Skills",UK Shared Business Services Ltd,09/08/2022,Hardware/Software Maintenance,Production Services,Bytes Software Services Ltd,99778083,"7,235.81",Computer Consumables,KT22 7TW
"Department for Business, Innovation and Skills",UK Shared Business Services Ltd,09/08/2022,Hardware/Software Maintenance,Production Services,Bytes Software Services Ltd,99778083,"3,461.08",Computer Consumables,KT22 7TW
"Department for Business, Innovation and Skills",UK Shared Business Services Ltd,09/08/2022,Hardware/Software Maintenance,Production Services,UKRI - Engineering & Physical Sciences Research Council,99779408,"37,849.61",Computer Consumables,INTERCO
"Department for Business, Innovation and Skills",UK Shared Business Services Ltd,09/08/2022,Consultancy Services,Production Services,Simpson Associates Information Services Ltd,99780072,"1,320.00",Computer Consumables,YO26 6RW
"Department for Business, Innovation and Skills",UK Shared Business Services Ltd,09/08/2022,Staff Training,HRSD Recoverables,The Chartered Institute of Payroll Professionals (CIPP),99781358,78,Training,B90 4ZL
"Department for Business, Innovation and Skills",UK Shared Business Services Ltd,09/08/2022,Staff Training,HRSD Recoverables,The Chartered Institute of Payroll Professionals (CIPP),99781359,78,Training,B90 4ZL
"Department for Business, Innovation and Skills",UK Shared Business Services Ltd,09/08/2022,T&S - Mileage,D&I Infrastructure & Network Services,Unspecified,99781454,76.14,Mileage - Car (excl Home to Office),HOME
"Department for Business, Innovation and Skills",UK Shared Business Services Ltd,09/08/2022,T&S - Subsistence,D&I Infrastructure & Network Services,Unspecified,99781454,5.3,Lunch (Actuals),HOME
"Department for Business, Innovation and Skills",UK Shared Business Services Ltd,10/08/2022,Contract Staff,Corporate HR,Alexander Mann Solutions Ltd,99770965,"3,780.36",Recruitment Services,EC2N 3AQ
"Department for Business, Innovation and Skills",UK Shared Business Services Ltd,10/08/2022,Contract Staff,Corporate Commercial,Alexander Mann Solutions Ltd,99777061,"6,303.12",Recruitment Services,EC2N 3AQ
"Department for Business, Innovation and Skills",UK Shared Business Services Ltd,10/08/2022,Conferences & Seminars,Executive Function,Amanda J Green Ltd,99780598,"3,000.00",Conference & Venues,WC1N 3AX
"Department for Business, Innovation and Skills",UK Shared Business Services Ltd,10/08/2022,Computer Software,Production Services,CDW Ltd,99782143,"20,750.30",Computing Hardware,SWAREHOUSEONLY
"Department for Business, Innovation and Skills",UK Shared Business Services Ltd,10/08/2022,Staff Training,HRSD Recoverables,Provek Ltd,99782728,"1,620.00",Training,RG19 4LW
"Department for Business, Innovation and Skills",UK Shared Business Services Ltd,10/08/2022,Staff Training,HRSD Recoverables,Provek Ltd,99782729,"1,620.00",Training,RG19 4LW
"Department for Business, Innovation and Skills",UK Shared Business Services Ltd,10/08/2022,Staff Training,HRSD Recoverables,Provek Ltd,99782730,"1,620.00",Training,RG19 4LW
"Department for Business, Innovation and Skills",UK Shared Business Services Ltd,10/08/2022,T&S - Other Charges,Executive Function,Unspecified,99782873,13,Miscellaneous (Actuals),HOME
"Department for Business, Innovation and Skills",UK Shared Business Services Ltd,10/08/2022,T&S - Mileage,Procurement Policy & Strategy,Unspecified,99782874,47.7,Mileage - Car (excl Home to Office),HOME
"Department for Business, Innovation and Skills",UK Shared Business Services Ltd,10/08/2022,T&S - Other Charges,D&I Infrastructure & Network Services,Unspecified,99782875,1,Miscellaneous (Actuals),HOME
"Department for Business, Innovation and Skills",UK Shared Business Services Ltd,11/08/2022,T&S - Other Charges,Finance Operations 1,Unspecified,99774288,121.99,Home-working Equipment,HOME
"Department for Business, Innovation and Skills",UK Shared Business Services Ltd,11/08/2022,T&S - Subsistence,HR Ops,Unspecified,99782495,15.79,Evening Meal (Actuals),HOME
"Department for Business, Innovation and Skills",UK Shared Business Services Ltd,11/08/2022,T&S - Vehicle Hire,HR Ops,Unspecified,99782495,94.09,Vehicle Hire/Rental/Fuel (Actuals),HOME
"Department for Business, Innovation and Skills",UK Shared Business Services Ltd,11/08/2022,T&S - Public Transport,Partnership Management,Unspecified,99782496,2.8,Public Transport - Bus (Actuals),HOME
"Department for Business, Innovation and Skills",UK Shared Business Services Ltd,11/08/2022,T&S - Public Transport,Partnership Management,Unspecified,99782496,18,Public Transport - Taxi Fare (Actuals),HOME
"Department for Business, Innovation and Skills",UK Shared Business Services Ltd,11/08/2022,T&S - Subsistence,Partnership Management,Unspecified,99782496,8.99,Evening Meal (Actuals),HOME
"Department for Business, Innovation and Skills",UK Shared Business Services Ltd,11/08/2022,T&S - Subsistence,Partnership Management,Unspecified,99782496,8.49,Lunch (Actuals),HOME
"Department for Business, Innovation and Skills",UK Shared Business Services Ltd,12/08/2022,IT Cloud Services,Production Services,Jisc Services Ltd,99776272,"20,392.08",AWS Infrastructure April 2022-Year 1,BS1 6NB
"Department for Business, Innovation and Skills",UK Shared Business Services Ltd,12/08/2022,IT Cloud Services,Production Services,Jisc Services Ltd,99776970,"20,350.64",AWS Infrastructure April 2022-Year 1,BS1 6NB
"Department for Business, Innovation and Skills",UK Shared Business Services Ltd,12/08/2022,Health & Safety (inc. Medicals & Opticians),"D&I Digital, Data & Analytics",Unspecified,99779661,25,Medical Fees & Vaccinations (Actuals),HOME
"Department for Business, Innovation and Skills",UK Shared Business Services Ltd,12/08/2022,Nursery Deductions,Balance Sheet,EDENRED (UK GROUP) LTD,99780670,"1,637.50",SR 11229476 CHILDCARE VOUCHERS AUGUST,SW1V 2RS
"Department for Business, Innovation and Skills",UK Shared Business Services Ltd,12/08/2022,PAYE Payable Salaries,Balance Sheet,HM Revenue & Customs,99782116,"195,068.35",SR-11229360 HMRC monthly deductions for SSC July 2022,3RD PARTY PAYME
"Department for Business, Innovation and Skills",UK Shared Business Services Ltd,12/08/2022,NI Payable Salaries,Balance Sheet,HM Revenue & Customs,99782117,"282,237.66",SR-11229360 HMRC monthly deductions for SSC July 2022,3RD PARTY PAYME
"Department for Business, Innovation and Skills",UK Shared Business Services Ltd,12/08/2022,Student Loans,Balance Sheet,HM Revenue & Customs,99782118,"2,666.00",SR-11229360 HMRC monthly deductions for SSC July 2022,3RD PARTY PAYME
"Department for Business, Innovation and Skills",UK Shared Business Services Ltd,12/08/2022,Apprenticeship Levy,Corporate HR,HM Revenue & Customs,99782119,"6,651.00",SR-11229360 HMRC monthly deductions for SSC July 2022,3RD PARTY PAYME
"Department for Business, Innovation and Skills",UK Shared Business Services Ltd,12/08/2022,T&S - Public Transport,Partnership Management,Corporate Travel Management (North) Ltd,99782556,0.25,15/07/2022----Rail Fee,BD1 5HQ
"Department for Business, Innovation and Skills",UK Shared Business Services Ltd,12/08/2022,T&S - Public Transport,Partnership Management,Corporate Travel Management (North) Ltd,99782556,41.4,15/07/2022--Peterborough-Nottingham-Rail,BD1 5HQ
"Department for Business, Innovation and Skills",UK Shared Business Services Ltd,12/08/2022,T&S - Accommodation,Accounting,Corporate Travel Management (North) Ltd,99782556,2,03/07/2022----Hotel Fee,BD1 5HQ
"Department for Business, Innovation and Skills",UK Shared Business Services Ltd,12/08/2022,T&S - Accommodation,Accounting,Corporate Travel Management (North) Ltd,99782556,325,03/07/2022--Thistle Express Swi-Bristol-Hotel,BD1 5HQ
"Department for Business, Innovation and Skills",UK Shared Business Services Ltd,12/08/2022,T&S - Accommodation,Accounting,Corporate Travel Management (North) Ltd,99782556,0.4,Travel & Hotel charges,BD1 5HQ
"Department for Business, Innovation and Skills",UK Shared Business Services Ltd,12/08/2022,T&S - Accommodation,Central Services Management,Corporate Travel Management (North) Ltd,99782556,0.8,01/08/2022----Hotel Fee,BD1 5HQ
"Department for Business, Innovation and Skills",UK Shared Business Services Ltd,12/08/2022,T&S - Accommodation,Central Services Management,Corporate Travel Management (North) Ltd,99782556,0.8,04/07/2022----Hotel Fee,BD1 5HQ
"Department for Business, Innovation and Skills",UK Shared Business Services Ltd,12/08/2022,T&S - Accommodation,Central Services Management,Corporate Travel Management (North) Ltd,99782556,150,04/07/2022--Jurys Inn Swindon-Bristol-Hotel,BD1 5HQ
"Department for Business, Innovation and Skills",UK Shared Business Services Ltd,12/08/2022,T&S - Accommodation,Central Services Management,Corporate Travel Management (North) Ltd,99782556,0.8,27/07/2022----Hotel Fee,BD1 5HQ
"Department for Business, Innovation and Skills",UK Shared Business Services Ltd,12/08/2022,T&S - Accommodation,Central Services Management,Corporate Travel Management (North) Ltd,99782556,120,27/07/2022--Club Quarters Trafa-London Heathrow-Hotel,BD1 5HQ
"Department for Business, Innovation and Skills",UK Shared Business Services Ltd,12/08/2022,T&S - Accommodation,Central Services Management,Corporate Travel Management (North) Ltd,99782556,0.48,Travel & Hotel charges,BD1 5HQ
"Department for Business, Innovation and Skills",UK Shared Business Services Ltd,12/08/2022,T&S - Accommodation,D&I Management,Corporate Travel Management (North) Ltd,99782556,0.8,11/07/2022----Hotel Fee,BD1 5HQ
"Department for Business, Innovation and Skills",UK Shared Business Services Ltd,12/08/2022,T&S - Accommodation,D&I Management,Corporate Travel Management (North) Ltd,99782556,364.5,11/07/2022--Jurys Inn Swindon-Bristol-Hotel,BD1 5HQ
"Department for Business, Innovation and Skills",UK Shared Business Services Ltd,12/08/2022,T&S - Accommodation,D&I Management,Corporate Travel Management (North) Ltd,99782556,0.16,Travel & Hotel charges,BD1 5HQ
"Department for Business, Innovation and Skills",UK Shared Business Services Ltd,12/08/2022,T&S - Accommodation,Finance Services,Corporate Travel Management (North) Ltd,99782556,0.8,19/07/2022----Hotel Fee,BD1 5HQ
"Department for Business, Innovation and Skills",UK Shared Business Services Ltd,12/08/2022,T&S - Accommodation,Finance Services,Corporate Travel Management (North) Ltd,99782556,0.8,24/07/2022----Hotel Fee,BD1 5HQ
"Department for Business, Innovation and Skills",UK Shared Business Services Ltd,12/08/2022,T&S - Accommodation,Finance Services,Corporate Travel Management (North) Ltd,99782556,0.8,24/07/2022----Hotel Fee,BD1 5HQ
"Department for Business, Innovation and Skills",UK Shared Business Services Ltd,12/08/2022,T&S - Accommodation,Finance Services,Corporate Travel Management (North) Ltd,99782556,0.8,24/07/2022----Hotel Fee,BD1 5HQ
"Department for Business, Innovation and Skills",UK Shared Business Services Ltd,12/08/2022,T&S - Accommodation,Finance Services,Corporate Travel Management (North) Ltd,99782556,0.64,Travel & Hotel charges,BD1 5HQ
"Department for Business, Innovation and Skills",UK Shared Business Services Ltd,12/08/2022,T&S - Accommodation,HR Ops,Corporate Travel Management (North) Ltd,99782556,0.8,18/07/2022----Hotel Fee,BD1 5HQ
"Department for Business, Innovation and Skills",UK Shared Business Services Ltd,12/08/2022,T&S - Accommodation,HR Ops,Corporate Travel Management (North) Ltd,99782556,0.8,18/07/2022----Hotel Fee,BD1 5HQ
"Department for Business, Innovation and Skills",UK Shared Business Services Ltd,12/08/2022,T&S - Accommodation,HR Ops,Corporate Travel Management (North) Ltd,99782556,210,18/07/2022--Cbh Hardwick Hall H-Teesside-Hotel,BD1 5HQ
"Department for Business, Innovation and Skills",UK Shared Business Services Ltd,12/08/2022,T&S - Accommodation,HR Ops,Corporate Travel Management (North) Ltd,99782556,0.8,18/07/2022----Hotel Fee,BD1 5HQ
"Department for Business, Innovation and Skills",UK Shared Business Services Ltd,12/08/2022,T&S - Accommodation,HR Ops,Corporate Travel Management (North) Ltd,99782556,210,18/07/2022--Cbh Hardwick Hall H-Teesside-Hotel,BD1 5HQ
"Department for Business, Innovation and Skills",UK Shared Business Services Ltd,12/08/2022,T&S - Accommodation,HR Ops,Corporate Travel Management (North) Ltd,99782556,0.8,18/07/2022----Hotel Fee,BD1 5HQ
"Department for Business, Innovation and Skills",UK Shared Business Services Ltd,12/08/2022,T&S - Accommodation,HR Ops,Corporate Travel Management (North) Ltd,99782556,0.8,18/07/2022----Hotel Fee,BD1 5HQ
"Department for Business, Innovation and Skills",UK Shared Business Services Ltd,12/08/2022,T&S - Accommodation,HR Ops,Corporate Travel Management (North) Ltd,99782556,0.8,Travel & Hotel charges,BD1 5HQ
"Department for Business, Innovation and Skills",UK Shared Business Services Ltd,12/08/2022,T&S - Accommodation,HR Ops & Specialists,Corporate Travel Management (North) Ltd,99782556,0.8,26/07/2022----Hotel Fee,BD1 5HQ
"Department for Business, Innovation and Skills",UK Shared Business Services Ltd,12/08/2022,T&S - Accommodation,HR Ops & Specialists,Corporate Travel Management (North) Ltd,99782556,140,26/07/2022--Village Swindon-Bristol-Hotel,BD1 5HQ
"Department for Business, Innovation and Skills",UK Shared Business Services Ltd,12/08/2022,T&S - Accommodation,HR Ops & Specialists,Corporate Travel Management (North) Ltd,99782556,0.8,26/07/2022----Hotel Fee,BD1 5HQ
"Department for Business, Innovation and Skills",UK Shared Business Services Ltd,12/08/2022,T&S - Accommodation,HR Ops & Specialists,Corporate Travel Management (North) Ltd,99782556,140,26/07/2022--Village Swindon-Bristol-Hotel,BD1 5HQ
"Department for Business, Innovation and Skills",UK Shared Business Services Ltd,12/08/2022,T&S - Accommodation,HR Ops & Specialists,Corporate Travel Management (North) Ltd,99782556,0.32,Travel & Hotel charges,BD1 5HQ
"Department for Business, Innovation and Skills",UK Shared Business Services Ltd,12/08/2022,T&S - Accommodation,Partnership Management,Corporate Travel Management (North) Ltd,99782556,0.8,14/07/2022----Hotel Fee,BD1 5HQ
"Department for Business, Innovation and Skills",UK Shared Business Services Ltd,12/08/2022,T&S - Accommodation,Partnership Management,Corporate Travel Management (North) Ltd,99782556,61,14/07/2022--Ibis Nottingham Cen-East Midlands-Hotel,BD1 5HQ
"Department for Business, Innovation and Skills",UK Shared Business Services Ltd,12/08/2022,T&S - Accommodation,Partnership Management,Corporate Travel Management (North) Ltd,99782556,1.6,14/07/2022----Hotel Fee,BD1 5HQ
"Department for Business, Innovation and Skills",UK Shared Business Services Ltd,12/08/2022,T&S - Accommodation,Partnership Management,Corporate Travel Management (North) Ltd,99782556,74,14/07/2022--Mercure Nottingham-East Midlands-Hotel,BD1 5HQ
"Department for Business, Innovation and Skills",UK Shared Business Services Ltd,12/08/2022,T&S - Accommodation,Partnership Management,Corporate Travel Management (North) Ltd,99782556,0.48,Travel & Hotel charges,BD1 5HQ
"Department for Business, Innovation and Skills",UK Shared Business Services Ltd,12/08/2022,T&S - Other Charges,Finance Operations 2,Corporate Travel Management (North) Ltd,99782556,0.25,06/07/2022----Rail Fee,BD1 5HQ
"Department for Business, Innovation and Skills",UK Shared Business Services Ltd,12/08/2022,T&S - Other Charges,Finance Operations 2,Corporate Travel Management (North) Ltd,99782556,35,06/07/2022--Newport S.wales-Swindon-Rail,BD1 5HQ
"Department for Business, Innovation and Skills",UK Shared Business Services Ltd,12/08/2022,T&S - Other Charges,Finance Operations 2,Corporate Travel Management (North) Ltd,99782556,0.25,12/07/2022----Rail Fee,BD1 5HQ
"Department for Business, Innovation and Skills",UK Shared Business Services Ltd,12/08/2022,T&S - Other Charges,Finance Operations 2,Corporate Travel Management (North) Ltd,99782556,35,12/07/2022--Newport S.wales-Swindon-Rail,BD1 5HQ
"Department for Business, Innovation and Skills",UK Shared Business Services Ltd,12/08/2022,T&S - Other Charges,Finance Operations 2,Corporate Travel Management (North) Ltd,99782556,0.25,19/07/2022----Rail Fee,BD1 5HQ
"Department for Business, Innovation and Skills",UK Shared Business Services Ltd,12/08/2022,T&S - Other Charges,Finance Operations 2,Corporate Travel Management (North) Ltd,99782556,35,19/07/2022--Newport S.wales-Swindon-Rail,BD1 5HQ
"Department for Business, Innovation and Skills",UK Shared Business Services Ltd,12/08/2022,T&S - Other Charges,Finance Operations 2,Corporate Travel Management (North) Ltd,99782556,0.25,20/07/2022----Rail Fee,BD1 5HQ
"Department for Business, Innovation and Skills",UK Shared Business Services Ltd,12/08/2022,T&S - Other Charges,Finance Operations 2,Corporate Travel Management (North) Ltd,99782556,35,20/07/2022--Newport S.wales-Swindon-Rail,BD1 5HQ
"Department for Business, Innovation and Skills",UK Shared Business Services Ltd,12/08/2022,T&S - Other Charges,Finance Operations 2,Corporate Travel Management (North) Ltd,99782556,0.25,21/07/2022----Rail Fee,BD1 5HQ
"Department for Business, Innovation and Skills",UK Shared Business Services Ltd,12/08/2022,T&S - Other Charges,Finance Operations 2,Corporate Travel Management (North) Ltd,99782556,35,21/07/2022--Newport S.wales-Swindon-Rail,BD1 5HQ
"Department for Business, Innovation and Skills",UK Shared Business Services Ltd,12/08/2022,T&S - Other Charges,Finance Operations 2,Corporate Travel Management (North) Ltd,99782556,0.25,28/07/2022----Rail Fee,BD1 5HQ
"Department for Business, Innovation and Skills",UK Shared Business Services Ltd,12/08/2022,T&S - Other Charges,Finance Operations 2,Corporate Travel Management (North) Ltd,99782556,35,28/07/2022--Newport S.wales-Swindon-Rail,BD1 5HQ
"Department for Business, Innovation and Skills",UK Shared Business Services Ltd,12/08/2022,T&S - Public Transport,Category and Continuous Improvement,Corporate Travel Management (North) Ltd,99782556,0.25,12/07/2022----Rail Fee,BD1 5HQ
"Department for Business, Innovation and Skills",UK Shared Business Services Ltd,12/08/2022,T&S - Public Transport,Category and Continuous Improvement,Corporate Travel Management (North) Ltd,99782556,35,12/07/2022--Newport S.wales-Swindon-Rail,BD1 5HQ
"Department for Business, Innovation and Skills",UK Shared Business Services Ltd,12/08/2022,T&S - Public Transport,Category and Continuous Improvement,Corporate Travel Management (North) Ltd,99782556,0.25,21/07/2022----Rail Fee,BD1 5HQ
"Department for Business, Innovation and Skills",UK Shared Business Services Ltd,12/08/2022,T&S - Public Transport,Category and Continuous Improvement,Corporate Travel Management (North) Ltd,99782556,35,21/07/2022--Newport S.wales-Swindon-Rail,BD1 5HQ
"Department for Business, Innovation and Skills",UK Shared Business Services Ltd,12/08/2022,T&S - Public Transport,Category and Continuous Improvement,Corporate Travel Management (North) Ltd,99782556,0.25,26/07/2022----Rail Fee,BD1 5HQ
"Department for Business, Innovation and Skills",UK Shared Business Services Ltd,12/08/2022,T&S - Public Transport,Category and Continuous Improvement,Corporate Travel Management (North) Ltd,99782556,35,26/07/2022--Newport S.wales-Swindon-Rail,BD1 5HQ
"Department for Business, Innovation and Skills",UK Shared Business Services Ltd,12/08/2022,T&S - Public Transport,Category and Continuous Improvement,Corporate Travel Management (North) Ltd,99782556,0.25,27/07/2022----Rail Fee,BD1 5HQ
"Department for Business, Innovation and Skills",UK Shared Business Services Ltd,12/08/2022,T&S - Public Transport,Category and Continuous Improvement,Corporate Travel Management (North) Ltd,99782556,35,27/07/2022--Newport S.wales-Swindon-Rail,BD1 5HQ
"Department for Business, Innovation and Skills",UK Shared Business Services Ltd,12/08/2022,T&S - Public Transport,Central Services Management,Corporate Travel Management (North) Ltd,99782556,0.25,27/07/2022----Rail Fee,BD1 5HQ
"Department for Business, Innovation and Skills",UK Shared Business Services Ltd,12/08/2022,T&S - Public Transport,Central Services Management,Corporate Travel Management (North) Ltd,99782556,77.5,27/07/2022--Nottingham-ZONE U1* LONDN-Rail,BD1 5HQ
"Department for Business, Innovation and Skills",UK Shared Business Services Ltd,12/08/2022,T&S - Public Transport,Corporate Finance,Corporate Travel Management (North) Ltd,99782556,0.25,14/07/2022----Rail Fee,BD1 5HQ
"Department for Business, Innovation and Skills",UK Shared Business Services Ltd,12/08/2022,T&S - Public Transport,Corporate Finance,Corporate Travel Management (North) Ltd,99782556,35,14/07/2022--Newport S.wales-Swindon-Rail,BD1 5HQ
"Department for Business, Innovation and Skills",UK Shared Business Services Ltd,12/08/2022,T&S - Public Transport,Corporate HR,Corporate Travel Management (North) Ltd,99782556,0.25,14/07/2022----Rail Fee,BD1 5HQ
"Department for Business, Innovation and Skills",UK Shared Business Services Ltd,12/08/2022,T&S - Public Transport,Corporate HR,Corporate Travel Management (North) Ltd,99782556,35,14/07/2022--Newport S.wales-Swindon-Rail,BD1 5HQ
"Department for Business, Innovation and Skills",UK Shared Business Services Ltd,12/08/2022,T&S - Public Transport,D&I Management,Corporate Travel Management (North) Ltd,99782556,5,13/06/2022----Rail Fee,BD1 5HQ
"Department for Business, Innovation and Skills",UK Shared Business Services Ltd,12/08/2022,T&S - Public Transport,D&I Management,Corporate Travel Management (North) Ltd,99782556,-301.6,13/06/2022--Billingham (cleveland)-Swindon-Rail,BD1 5HQ
"Department for Business, Innovation and Skills",UK Shared Business Services Ltd,12/08/2022,T&S - Public Transport,D&I Management,Corporate Travel Management (North) Ltd,99782556,5,20/06/2022----Rail Fee,BD1 5HQ
"Department for Business, Innovation and Skills",UK Shared Business Services Ltd,12/08/2022,T&S - Public Transport,D&I Management,Corporate Travel Management (North) Ltd,99782556,-301.6,20/06/2022--Billingham (cleveland)-Swindon-Rail,BD1 5HQ
"Department for Business, Innovation and Skills",UK Shared Business Services Ltd,12/08/2022,T&S - Public Transport,DDaT,Corporate Travel Management (North) Ltd,99782556,0.25,08/07/2022----Rail Fee,BD1 5HQ
"Department for Business, Innovation and Skills",UK Shared Business Services Ltd,12/08/2022,T&S - Public Transport,DDaT,Corporate Travel Management (North) Ltd,99782556,40.7,08/07/2022--Cardiff Central-Swindon-Rail,BD1 5HQ
"Department for Business, Innovation and Skills",UK Shared Business Services Ltd,12/08/2022,T&S - Public Transport,DDaT,Corporate Travel Management (North) Ltd,99782556,0.25,12/07/2022----Rail Fee,BD1 5HQ
"Department for Business, Innovation and Skills",UK Shared Business Services Ltd,12/08/2022,T&S - Public Transport,DDaT,Corporate Travel Management (North) Ltd,99782556,40.7,12/07/2022-Cardiff Central-Swindon-Rail,BD1 5HQ
"Department for Business, Innovation and Skills",UK Shared Business Services Ltd,12/08/2022,T&S - Public Transport,ERP Support,Corporate Travel Management (North) Ltd,99782556,0.25,15/07/2022----Rail Fee,BD1 5HQ
"Department for Business, Innovation and Skills",UK Shared Business Services Ltd,12/08/2022,T&S - Public Transport,ERP Support,Corporate Travel Management (North) Ltd,99782556,40.7,15/07/2022--Cardiff Central-Swindon-Rail,BD1 5HQ
"Department for Business, Innovation and Skills",UK Shared Business Services Ltd,12/08/2022,T&S - Public Transport,ERP Support,Corporate Travel Management (North) Ltd,99782556,0.25,19/07/2022----Rail Fee,BD1 5HQ
"Department for Business, Innovation and Skills",UK Shared Business Services Ltd,12/08/2022,T&S - Public Transport,ERP Support,Corporate Travel Management (North) Ltd,99782556,40.7,19/07/2022--Cardiff Central-Swindon-Rail,BD1 5HQ
"Department for Business, Innovation and Skills",UK Shared Business Services Ltd,12/08/2022,T&S - Public Transport,Finance Operations 2,Corporate Travel Management (North) Ltd,99782556,0.25,01/08/2022----Rail Fee,BD1 5HQ
"Department for Business, Innovation and Skills",UK Shared Business Services Ltd,12/08/2022,T&S - Public Transport,Finance Operations 2,Corporate Travel Management (North) Ltd,99782556,35,01/08/2022--Swindon-Rail,BD1 5HQ
"Department for Business, Innovation and Skills",UK Shared Business Services Ltd,12/08/2022,T&S - Public Transport,Finance Operations 2,Corporate Travel Management (North) Ltd,99782556,0.25,13/07/2022----Rail Fee,BD1 5HQ
"Department for Business, Innovation and Skills",UK Shared Business Services Ltd,12/08/2022,T&S - Public Transport,Finance Operations 2,Corporate Travel Management (North) Ltd,99782556,35,13/07/2022--Swindon (wilts)-Newport Gwent-Rail,BD1 5HQ
"Department for Business, Innovation and Skills",UK Shared Business Services Ltd,12/08/2022,T&S - Public Transport,Finance Operations 2,Corporate Travel Management (North) Ltd,99782556,0.25,13/07/2022----Rail Fee,BD1 5HQ
"Department for Business, Innovation and Skills",UK Shared Business Services Ltd,12/08/2022,T&S - Public Transport,Finance Operations 2,Corporate Travel Management (North) Ltd,99782556,35,13/07/2022--Swindon (wilts)-Newport Gwent-Rail,BD1 5HQ
"Department for Business, Innovation and Skills",UK Shared Business Services Ltd,12/08/2022,T&S - Public Transport,Finance Services,Corporate Travel Management (North) Ltd,99782556,5,13/06/2022----Rail Fee,BD1 5HQ
"Department for Business, Innovation and Skills",UK Shared Business Services Ltd,12/08/2022,T&S - Public Transport,Finance Services,Corporate Travel Management (North) Ltd,99782556,-96.6,13/06/2022--Swindon (wilts)-Manchester Piccadilly-Rail,BD1 5HQ
"Department for Business, Innovation and Skills",UK Shared Business Services Ltd,12/08/2022,T&S - Public Transport,Operational Procurement,Corporate Travel Management (North) Ltd,99782556,0.5,19/07/2022----Rail Fee,BD1 5HQ
"Department for Business, Innovation and Skills",UK Shared Business Services Ltd,12/08/2022,T&S - Public Transport,Operational Procurement,Corporate Travel Management (North) Ltd,99782556,158.7,19/07/2022--Swindon (wilts)-London Zones 1-6-Rail,BD1 5HQ
"Department for Business, Innovation and Skills",UK Shared Business Services Ltd,12/08/2022,T&S - Public Transport,Operational Procurement,Corporate Travel Management (North) Ltd,99782556,157.2,19/07/2022--Swindon (wilts)-ZONE U1* LONDN-Rail,BD1 5HQ
"Department for Business, Innovation and Skills",UK Shared Business Services Ltd,12/08/2022,T&S - Public Transport,Operational Purchasing and Functional Support,Corporate Travel Management (North) Ltd,99782556,5,17/06/2022----Rail Fee,BD1 5HQ
"Department for Business, Innovation and Skills",UK Shared Business Services Ltd,12/08/2022,T&S - Public Transport,Operational Purchasing and Functional Support,Corporate Travel Management (North) Ltd,99782556,-22.5,17/06/2022--Cathays-Swindon-Rail,BD1 5HQ
"Department for Business, Innovation and Skills",UK Shared Business Services Ltd,12/08/2022,T&S - Public Transport,Partnership Management,Corporate Travel Management (North) Ltd,99782556,0.25,01/08/2022----Rail Fee,BD1 5HQ
"Department for Business, Innovation and Skills",UK Shared Business Services Ltd,12/08/2022,T&S - Public Transport,Partnership Management,Corporate Travel Management (North) Ltd,99782556,264,01/08/2022--Peterborough-Swindon-Rail,BD1 5HQ
"Department for Business, Innovation and Skills",UK Shared Business Services Ltd,12/08/2022,T&S - Public Transport,Partnership Management,Corporate Travel Management (North) Ltd,99782556,0.5,14/07/2022----Rail Fee,BD1 5HQ
"Department for Business, Innovation and Skills",UK Shared Business Services Ltd,12/08/2022,T&S - Public Transport,Partnership Management,Corporate Travel Management (North) Ltd,99782556,41.4,14/07/2022--Peterborough-Nottingham-Rail,BD1 5HQ
"Department for Business, Innovation and Skills",UK Shared Business Services Ltd,12/08/2022,T&S - Public Transport,Partnership Management,Corporate Travel Management (North) Ltd,99782556,11.5,14/07/2022--Whittlesea-Nottingham-Rail,BD1 5HQ
"Department for Business, Innovation and Skills",UK Shared Business Services Ltd,12/08/2022,T&S - Public Transport,Partnership Management,Corporate Travel Management (North) Ltd,99782556,0.25,15/07/2022----Rail Fee,BD1 5HQ
"Department for Business, Innovation and Skills",UK Shared Business Services Ltd,12/08/2022,T&S - Public Transport,Partnership Management,Corporate Travel Management (North) Ltd,99782556,28.5,15/07/2022--Nottingham-Whittlesea-Rail,BD1 5HQ
"Department for Business, Innovation and Skills",UK Shared Business Services Ltd,12/08/2022,T&S - Public Transport,Project Office,Corporate Travel Management (North) Ltd,99782556,0.25,11/08/2022----Rail Fee,BD1 5HQ
"Department for Business, Innovation and Skills",UK Shared Business Services Ltd,12/08/2022,T&S - Public Transport,Project Office,Corporate Travel Management (North) Ltd,99782556,35,11/08/2022--Swindon (wilts)-Newport Gwent-Rail,BD1 5HQ
"Department for Business, Innovation and Skills",UK Shared Business Services Ltd,12/08/2022,T&S - Public Transport,Project Office,Corporate Travel Management (North) Ltd,99782556,0.25,11/08/2022----Rail Fee,BD1 5HQ
"Department for Business, Innovation and Skills",UK Shared Business Services Ltd,12/08/2022,T&S - Public Transport,Project Office,Corporate Travel Management (North) Ltd,99782556,35,11/08/2022--Swindon (wilts)-Newport Gwent-Rail,BD1 5HQ
"Department for Business, Innovation and Skills",UK Shared Business Services Ltd,12/08/2022,T&S - Public Transport,Project Office,Corporate Travel Management (North) Ltd,99782556,0.25,11/08/2022----Rail Fee,BD1 5HQ
"Department for Business, Innovation and Skills",UK Shared Business Services Ltd,12/08/2022,T&S - Public Transport,Project Office,Corporate Travel Management (North) Ltd,99782556,35,11/08/2022--Swindon (wilts)-Newport Gwent-Rail,BD1 5HQ
"Department for Business, Innovation and Skills",UK Shared Business Services Ltd,12/08/2022,T&S - Public Transport,Project Office,Corporate Travel Management (North) Ltd,99782556,0.25,11/08/2022----Rail Fee,BD1 5HQ
"Department for Business, Innovation and Skills",UK Shared Business Services Ltd,12/08/2022,T&S - Public Transport,Project Office,Corporate Travel Management (North) Ltd,99782556,35,11/08/2022--Swindon (wilts)-Newport Gwent-Rail,BD1 5HQ
"Department for Business, Innovation and Skills",UK Shared Business Services Ltd,12/08/2022,T&S - Public Transport,Project Office,Corporate Travel Management (North) Ltd,99782556,0.25,11/08/2022----Rail Fee,BD1 5HQ
"Department for Business, Innovation and Skills",UK Shared Business Services Ltd,12/08/2022,T&S - Public Transport,Project Office,Corporate Travel Management (North) Ltd,99782556,35,11/08/2022--Swindon (wilts)-Newport Gwent-Rail,BD1 5HQ
"Department for Business, Innovation and Skills",UK Shared Business Services Ltd,12/08/2022,Computer Software,Production Services,Circle IT Solutions Ltd,99783269,"8,270.72",Computer Consumables,CF23 8AB
"Department for Business, Innovation and Skills",UK Shared Business Services Ltd,12/08/2022,Recruitment Costs,Corporate HR,Agenda Resource Management Ltd,99783312,689.86,Professional Services,HU12 8YJ
"Department for Business, Innovation and Skills",UK Shared Business Services Ltd,15/08/2022,Agency Staff,ROE Application Upgrade,Alexander Mann Solutions Ltd,99776484,"12,271.32",Recruitment Services,EC2N 3AQ
"Department for Business, Innovation and Skills",UK Shared Business Services Ltd,15/08/2022,Voluntary Deductions,Balance Sheet,Civil Service Benevolent Fund,99782120,18,SR-11229360 SSC THIRD PARTY PAYMENTS July2022,SM3 8DY
"Department for Business, Innovation and Skills",UK Shared Business Services Ltd,15/08/2022,Union Deductions,Balance Sheet,PCS Union,99782121,919.36,SR-11229360 SSC THIRD PARTY PAYMENTS July2022,SW11 2LN
"Department for Business, Innovation and Skills",UK Shared Business Services Ltd,15/08/2022,Voluntary Deductions,Balance Sheet,Swindon Office Sports and Social Club,99782122,176,SR-11229360 SSC THIRD PARTY PAYMENTS July2022,SN2 1EU
"Department for Business, Innovation and Skills",UK Shared Business Services Ltd,15/08/2022,Ees Pension Deductions - JSS,Balance Sheet,RCPS Pension,99782123,"81,899.42",SR-11229360 RCPS monthly contributions for SSC July2022,SN2 1UY.
"Department for Business, Innovation and Skills",UK Shared Business Services Ltd,15/08/2022,Ers Pension Deductions - JSS,Balance Sheet,RCPS Pension,99782124,"368,923.78",SR-11229360 RCPS monthly contributions for SSC July2022,SN2 1UY.
"Department for Business, Innovation and Skills",UK Shared Business Services Ltd,15/08/2022,Other Pension Deductions,Balance Sheet,Scottish Widows,99782125,100,SR-11229360 SSC THIRD PARTY PAYMENTS July2022,EH16 5BU
"Department for Business, Innovation and Skills",UK Shared Business Services Ltd,15/08/2022,Partnership Pension Deductions,Balance Sheet,Scottish Widows,99782126,"3,771.20",SR-11229360 SSC THIRD PARTY PAYMENTS July2022,EH16 5BU
"Department for Business, Innovation and Skills",UK Shared Business Services Ltd,15/08/2022,Partnership Pension Deductions,Balance Sheet,Standard Life Assurance Ltd,99782127,391.31,SR-11229360 SSC THIRD PARTY PAYMENTS July2022,EH1 2DH
"Department for Business, Innovation and Skills",UK Shared Business Services Ltd,15/08/2022,Ees Pension Deductions - MRC,Balance Sheet,JLT Pensions Administration Ltd T/A JLT Employee Benefits,99782128,"3,841.36",SR-11229360 SSC THIRD PARTY PAYMENTS July2022,PRINCIPAL SECTI
"Department for Business, Innovation and Skills",UK Shared Business Services Ltd,15/08/2022,Ers Pension Deductions - MRC,Balance Sheet,JLT Pensions Administration Ltd T/A JLT Employee Benefits,99782129,"9,987.52",SR-11229360 SSC THIRD PARTY PAYMENTS July2022,PRINCIPAL SECTI
"Department for Business, Innovation and Skills",UK Shared Business Services Ltd,15/08/2022,Voluntary Deductions,Balance Sheet,BHCA (Services) Ltd,99782130,59.15,SR-11229360 SSC THIRD PARTY PAYMENTS July2022,NN14 1UE
"Department for Business, Innovation and Skills",UK Shared Business Services Ltd,15/08/2022,Ees Pension Deductions - MyCSP,Balance Sheet,Cabinet Office RM Shared Services,99782131,145.36,SR-11229360 UKSBS THIRD PARTY PAYMENTS July 2022,FY5 3TA
"Department for Business, Innovation and Skills",UK Shared Business Services Ltd,15/08/2022,Ers Pension Deductions - MyCSP,Balance Sheet,Cabinet Office RM Shared Services,99782132,722.78,SR-11229360 UKSBS THIRD PARTY PAYMENTS July 2022,FY5 3TA
"Department for Business, Innovation and Skills",UK Shared Business Services Ltd,15/08/2022,Contract Staff,Production Services,Alexander Mann Solutions Ltd,99783548,"11,086.63",Recruitment Services,EC2N 3AQ
"Department for Business, Innovation and Skills",UK Shared Business Services Ltd,15/08/2022,Contract Staff,Project Office,Alexander Mann Solutions Ltd,99783553,"3,649.14",Recruitment Services,EC2N 3AQ
"Department for Business, Innovation and Skills",UK Shared Business Services Ltd,15/08/2022,Contract Staff,Corporate HR,Alexander Mann Solutions Ltd,99783557,"3,780.36",Recruitment Services,EC2N 3AQ
"Department for Business, Innovation and Skills",UK Shared Business Services Ltd,15/08/2022,Contract Staff,Corporate Commercial,Alexander Mann Solutions Ltd,99783947,"6,303.12",Recruitment Services,EC2N 3AQ
"Department for Business, Innovation and Skills",UK Shared Business Services Ltd,15/08/2022,Contract Staff,SHARP,Alexander Mann Solutions Ltd,99783966,"3,387.66",Recruitment Services,EC2N 3AQ
"Department for Business, Innovation and Skills",UK Shared Business Services Ltd,15/08/2022,T&S - Mileage,SIAM,Unspecified,99784154,45,Mileage - Car (excl Home to Office),HOME
"Department for Business, Innovation and Skills",UK Shared Business Services Ltd,16/08/2022,Computer Software Licences,Production Services,Softcat plc,99770294,388.79,Computer Consumables,SL7 1LW
"Department for Business, Innovation and Skills",UK Shared Business Services Ltd,16/08/2022,Computer Software Licences,Production Services,Softcat plc,99770294,"2,586.33",Computer Consumables,SL7 1LW
"Department for Business, Innovation and Skills",UK Shared Business Services Ltd,16/08/2022,Health & Safety (inc. Medicals & Opticians),People,Swindon Occupational Medical Services Ltd,99780182,"2,090.00",Professional Services,GL7 7AL
"Department for Business, Innovation and Skills",UK Shared Business Services Ltd,16/08/2022,Consultancy Services,Interfaces & API Mgmt,Software AG (UK) Ltd,99780782,14.47,Computer Consumables,DE24 8BY
"Department for Business, Innovation and Skills",UK Shared Business Services Ltd,16/08/2022,Consultancy Services,Interfaces & API Mgmt,Software AG (UK) Ltd,99780782,"3,547.44",Computer Consumables,DE24 8BY
"Department for Business, Innovation and Skills",UK Shared Business Services Ltd,16/08/2022,T&S - Subsistence,D&I Infrastructure & Network Services,Unspecified,99784512,24.2,Lunch (Actuals),HOME
"Department for Business, Innovation and Skills",UK Shared Business Services Ltd,16/08/2022,T&S - Vehicle Hire,D&I Infrastructure & Network Services,Unspecified,99784512,37.18,Vehicle Hire/Rental/Fuel (Actuals),HOME
"Department for Business, Innovation and Skills",UK Shared Business Services Ltd,17/08/2022,Staff Training,HRSD Recoverables,ASK Europe PLC,99784930,840,Training,MK43 0BT
"Department for Business, Innovation and Skills",UK Shared Business Services Ltd,17/08/2022,Staff Training,HRSD Recoverables,ASK Europe PLC,99784932,504,Training,MK43 0BT
"Department for Business, Innovation and Skills",UK Shared Business Services Ltd,17/08/2022,Staff Training,HRSD Recoverables,ASK Europe PLC,99784935,840,Training,MK43 0BT
"Department for Business, Innovation and Skills",UK Shared Business Services Ltd,17/08/2022,Staff Training,HRSD Recoverables,ASK Europe PLC,99784939,840,Training,MK43 0BT
"Department for Business, Innovation and Skills",UK Shared Business Services Ltd,17/08/2022,Staff Training,HRSD Recoverables,ASK Europe PLC,99784941,840,Training,MK43 0BT
"Department for Business, Innovation and Skills",UK Shared Business Services Ltd,17/08/2022,T&S - Vehicle Hire,Production Services,Enterprise Rent-A-Car UK Ltd,99785033,5.08,SR 11236910 CAR HIRE,GL2 5DA
"Department for Business, Innovation and Skills",UK Shared Business Services Ltd,17/08/2022,T&S - Vehicle Hire,Production Services,Enterprise Rent-A-Car UK Ltd,99785033,25.39,,GL2 5DA
"Department for Business, Innovation and Skills",UK Shared Business Services Ltd,17/08/2022,Mobile Phone Costs,Production Services,Telefonica UK Ltd (O2),99785041,"1,788.93",CALL CHARGES,SMARTFORM
"Department for Business, Innovation and Skills",UK Shared Business Services Ltd,17/08/2022,Recruitment Costs,Corporate HR,Agenda Resource Management Ltd,99785080,637.36,Professional Services,HU12 8YJ
"Department for Business, Innovation and Skills",UK Shared Business Services Ltd,17/08/2022,Computing Consumables,Production Services,Dell Corporation Ltd,99785713,"8,750.40",Computer Consumables,SWAREHOUSEONLY
"Department for Business, Innovation and Skills",UK Shared Business Services Ltd,17/08/2022,Health & Safety (inc. Medicals & Opticians),Tier 1 ROE Transactions,Unspecified,99785818,55,Medical Fees & Vaccinations (Actuals),HOME
"Department for Business, Innovation and Skills",UK Shared Business Services Ltd,17/08/2022,UK - Professional Memberships & Subscriptions,Resourcing,Unspecified,99785819,167,Professional Subscriptions (Actuals),HOME
"Department for Business, Innovation and Skills",UK Shared Business Services Ltd,18/08/2022,T&S - Vehicle Hire,Board,Non Employee Expenses Supplier,99785199,66.6,SR-11206214 T&S Attended meetings as UK SBS Board member,BACS
"Department for Business, Innovation and Skills",UK Shared Business Services Ltd,18/08/2022,Printing & Stationery,Finance Operations 1,Banner Group Ltd,99785936,13.32,Office Supplies,SWAREHOUSEONLY
"Department for Business, Innovation and Skills",UK Shared Business Services Ltd,18/08/2022,Safety Materials & Equipment,Finance Operations 1,Banner Group Ltd,99785937,17.69,Safety Equipment & Materials,SWAREHOUSEONLY
"Department for Business, Innovation and Skills",UK Shared Business Services Ltd,19/08/2022,Hardware/Software Maintenance,Production Services,KTSL Ltd,99779837,146.26,Computer Consumables,SN13 0ZQ
"Department for Business, Innovation and Skills",UK Shared Business Services Ltd,19/08/2022,T&S - Other Charges,"D&I Digital, Data & Analytics",Unspecified,99785523,45,Miscellaneous (Actuals),HOME
"Department for Business, Innovation and Skills",UK Shared Business Services Ltd,19/08/2022,UK - Professional Memberships & Subscriptions,Facilities,Unspecified,99785524,370,Professional Subscriptions (Actuals),HOME
"Department for Business, Innovation and Skills",UK Shared Business Services Ltd,19/08/2022,Staff Training,HRSD Recoverables,ASK Europe PLC,99785605,840,Training,MK43 0BT
"Department for Business, Innovation and Skills",UK Shared Business Services Ltd,19/08/2022,Other Staff Benefits,Resourcing,BMI Healthcare Limited,99786400,564.2,ZZ-Employee Benefits,SE3 9LG
"Department for Business, Innovation and Skills",UK Shared Business Services Ltd,19/08/2022,Other Staff Benefits,People,Amazon EU SARL,99786424,150,ZZ-Employee Benefits,EC2A 2FA
"Department for Business, Innovation and Skills",UK Shared Business Services Ltd,22/08/2022,Computer Software Licences,SHARP,Oracle Corporation UK Ltd,99778341,340.96,Computer Consumables,RG6 1RA
"Department for Business, Innovation and Skills",UK Shared Business Services Ltd,22/08/2022,Staff Training,HRSD Recoverables,ASK Europe PLC,99785607,840,Training,MK43 0BT
"Department for Business, Innovation and Skills",UK Shared Business Services Ltd,22/08/2022,Staff Training,HRSD Recoverables,ASK Europe PLC,99785611,840,Training,MK43 0BT
"Department for Business, Innovation and Skills",UK Shared Business Services Ltd,22/08/2022,Staff Training,HRSD Recoverables,ASK Europe PLC,99785613,840,Training,MK43 0BT
"Department for Business, Innovation and Skills",UK Shared Business Services Ltd,22/08/2022,Staff Training,HRSD Recoverables,ASK Europe PLC,99785615,840,Training,MK43 0BT
"Department for Business, Innovation and Skills",UK Shared Business Services Ltd,22/08/2022,GPC Clearing - SSC,Balance Sheet,Unspecified,99785820,-498,Unspecified,HOME
"Department for Business, Innovation and Skills",UK Shared Business Services Ltd,22/08/2022,Protective Clothing,Executive Function,Unspecified,99785820,498,GPC_Clothing - Protective,HOME
"Department for Business, Innovation and Skills",UK Shared Business Services Ltd,22/08/2022,Contract Staff,People,Alexander Mann Solutions Ltd,99786547,"2,835.30",Recruitment Services,EC2N 3AQ
"Department for Business, Innovation and Skills",UK Shared Business Services Ltd,22/08/2022,Contract Staff,Project Office,Alexander Mann Solutions Ltd,99786800,"3,649.14",Recruitment Services,EC2N 3AQ
"Department for Business, Innovation and Skills",UK Shared Business Services Ltd,22/08/2022,Contract Staff,SHARP,Alexander Mann Solutions Ltd,99786802,"3,387.66",Recruitment Services,EC2N 3AQ
"Department for Business, Innovation and Skills",UK Shared Business Services Ltd,23/08/2022,Computer Software Licences,Production Services,Phoenix Software Ltd,99771388,"7,011.73",Computer Consumables,YO42 1NS
"Department for Business, Innovation and Skills",UK Shared Business Services Ltd,23/08/2022,Computer Software Licences,Production Services,Phoenix Software Ltd,99772110,3.31,Computer Consumables,YO42 1NS
"Department for Business, Innovation and Skills",UK Shared Business Services Ltd,23/08/2022,Contract Staff,People,Alexander Mann Solutions Ltd,99776475,"7,696.44",Recruitment Services,EC2N 3AQ
"Department for Business, Innovation and Skills",UK Shared Business Services Ltd,23/08/2022,Agency Staff,ROE Application Upgrade,Alexander Mann Solutions Ltd,99779918,"4,090.44",Recruitment Services,EC2N 3AQ
"Department for Business, Innovation and Skills",UK Shared Business Services Ltd,23/08/2022,Hardware/Software Maintenance,ISS Recoverable Charges � UKRI,Ogel IT Ltd,99781270,"8,726.01","Technical Assurance, Support and Escalation Services",SG1 2FS
"Department for Business, Innovation and Skills",UK Shared Business Services Ltd,23/08/2022,Hardware/Software Maintenance,ISS Recoverable Charges � UKRI,Ogel IT Ltd,99781274,"8,726.01","Technical Assurance, Support and Escalation Services",SG1 2FS
"Department for Business, Innovation and Skills",UK Shared Business Services Ltd,23/08/2022,Hardware/Software Maintenance,ISS Recoverable Charges � UKRI,Ogel IT Ltd,99781276,"8,726.01","Technical Assurance, Support and Escalation Services",SG1 2FS
"Department for Business, Innovation and Skills",UK Shared Business Services Ltd,23/08/2022,Hardware/Software Maintenance,ISS Recoverable Charges � UKRI,Ogel IT Ltd,99781292,"8,726.01","Technical Assurance, Support and Escalation Services",SG1 2FS
"Department for Business, Innovation and Skills",UK Shared Business Services Ltd,23/08/2022,Contract Staff,Production Services,Alexander Mann Solutions Ltd,99783558,"3,465.30",Recruitment Services,EC2N 3AQ
"Department for Business, Innovation and Skills",UK Shared Business Services Ltd,23/08/2022,Financial Services,Corporate Finance,UKRI - Engineering & Physical Sciences Research Council,99785314,"8,689.05",Financial Services,INTERCO
"Department for Business, Innovation and Skills",UK Shared Business Services Ltd,23/08/2022,Protective Clothing,Finance Operations 1,Aston Pharma,99786353,11.11,Safety Equipment & Materials,SWAREHOUSEONLY
"Department for Business, Innovation and Skills",UK Shared Business Services Ltd,23/08/2022,Safety Materials & Equipment,Finance Operations 1,Aston Pharma,99786353,11.04,Safety Equipment & Materials,SWAREHOUSEONLY
"Department for Business, Innovation and Skills",UK Shared Business Services Ltd,23/08/2022,Contract Staff,Production Services,Alexander Mann Solutions Ltd,99786548,"3,465.30",Recruitment Services,EC2N 3AQ
"Department for Business, Innovation and Skills",UK Shared Business Services Ltd,23/08/2022,Agency Staff,ROE Application Upgrade,Alexander Mann Solutions Ltd,99786749,"4,090.44",Recruitment Services,EC2N 3AQ
"Department for Business, Innovation and Skills",UK Shared Business Services Ltd,23/08/2022,T&S - Parking Tolls Congestion Charges,Operational Excellence,Unspecified,99787099,12,"Parking, Tolls, Congestion Charge",HOME
"Department for Business, Innovation and Skills",UK Shared Business Services Ltd,23/08/2022,T&S - Subsistence,Operational Excellence,Unspecified,99787099,4.89,Breakfast (Actuals),HOME
"Department for Business, Innovation and Skills",UK Shared Business Services Ltd,23/08/2022,T&S - Subsistence,Operational Excellence,Unspecified,99787099,10.98,Evening Meal (Actuals),HOME
"Department for Business, Innovation and Skills",UK Shared Business Services Ltd,23/08/2022,T&S - Subsistence,Operational Excellence,Unspecified,99787099,25.7,Lunch (Actuals),HOME
"Department for Business, Innovation and Skills",UK Shared Business Services Ltd,23/08/2022,T&S - Vehicle Hire,Operational Excellence,Unspecified,99787099,90.51,Vehicle Hire/Rental/Fuel (Actuals),HOME
"Department for Business, Innovation and Skills",UK Shared Business Services Ltd,23/08/2022,Conferences & Seminars,HRSD Recoverables,Unspecified,99787100,78,Conference/Course Fees (Actuals),HOME
"Department for Business, Innovation and Skills",UK Shared Business Services Ltd,23/08/2022,T&S - Parking Tolls Congestion Charges,Operational Excellence,Unspecified,99787102,20,"Parking, Tolls, Congestion Charge",HOME
"Department for Business, Innovation and Skills",UK Shared Business Services Ltd,24/08/2022,IT Cloud Services,Production Services,Insight Direct (UK) Ltd,99787067,"5,850.22",Computer Consumables,SMARTFORM
"Department for Business, Innovation and Skills",UK Shared Business Services Ltd,24/08/2022,IT Cloud Services,Production Services,Insight Direct (UK) Ltd,99787067,"27,678.75",Computer Consumables,SMARTFORM
"Department for Business, Innovation and Skills",UK Shared Business Services Ltd,24/08/2022,T&S - Other Charges,Accounting,Unspecified,99787436,55,Miscellaneous (Actuals),HOME
"Department for Business, Innovation and Skills",UK Shared Business Services Ltd,25/08/2022,Computer Software Licences,SHARP,Oracle Corporation UK Ltd,99777752,"2,133.65",Computer Consumables,RG6 1RA
"Department for Business, Innovation and Skills",UK Shared Business Services Ltd,25/08/2022,Computer Software Licences,SHARP,Oracle Corporation UK Ltd,99777752,"2,133.65",Computer Consumables,RG6 1RA
"Department for Business, Innovation and Skills",UK Shared Business Services Ltd,25/08/2022,Computer Software Licences,SHARP,Oracle Corporation UK Ltd,99777752,"1,194.84",Computer Consumables,RG6 1RA
"Department for Business, Innovation and Skills",UK Shared Business Services Ltd,25/08/2022,Computer Software Licences,SHARP,Oracle Corporation UK Ltd,99777752,664.56,Computer Consumables,RG6 1RA
"Department for Business, Innovation and Skills",UK Shared Business Services Ltd,25/08/2022,Computer Software Licences,SHARP,Oracle Corporation UK Ltd,99777752,271.28,Computer Consumables,RG6 1RA
"Department for Business, Innovation and Skills",UK Shared Business Services Ltd,25/08/2022,Computer Software Licences,SHARP,Oracle Corporation UK Ltd,99777752,136.55,Computer Consumables,RG6 1RA
"Department for Business, Innovation and Skills",UK Shared Business Services Ltd,25/08/2022,Computer Software Licences,SHARP,Oracle Corporation UK Ltd,99777752,"4,267.30",Computer Consumables,RG6 1RA
"Department for Business, Innovation and Skills",UK Shared Business Services Ltd,25/08/2022,Computer Software Licences,SHARP,Oracle Corporation UK Ltd,99777752,"2,321.68",Computer Consumables,RG6 1RA
"Department for Business, Innovation and Skills",UK Shared Business Services Ltd,25/08/2022,Computer Software Licences,SHARP,Oracle Corporation UK Ltd,99777752,376.49,Computer Consumables,RG6 1RA
"Department for Business, Innovation and Skills",UK Shared Business Services Ltd,25/08/2022,Staff Training,HRSD Recoverables,The Knowledge Academy,99779868,"3,588.00",Training,RG12 1HL
"Department for Business, Innovation and Skills",UK Shared Business Services Ltd,25/08/2022,Health & Safety (inc. Medicals & Opticians),HR Ops,Unspecified,99788723,25,Medical Fees & Vaccinations (Actuals),HOME
"Department for Business, Innovation and Skills",UK Shared Business Services Ltd,25/08/2022,Health & Safety (inc. Medicals & Opticians),Operational Excellence,Unspecified,99788724,80,Medical Fees & Vaccinations (Actuals),HOME
"Department for Business, Innovation and Skills",UK Shared Business Services Ltd,25/08/2022,Conferences & Seminars,Project Office,Unspecified,99788725,390,Conference/Course Fees (Actuals),HOME
"Department for Business, Innovation and Skills",UK Shared Business Services Ltd,25/08/2022,T&S - Parking Tolls Congestion Charges,Operational Excellence,Unspecified,99788726,10,"Parking, Tolls, Congestion Charge",HOME
"Department for Business, Innovation and Skills",UK Shared Business Services Ltd,26/08/2022,Computer Hardware,Production Services,Probrand Ltd,99789035,599.76,Computing Hardware,SMARTFORM
"Department for Business, Innovation and Skills",UK Shared Business Services Ltd,26/08/2022,Computer Hardware,Production Services,Probrand Ltd,99789035,2.4,Computing Hardware,SMARTFORM
"Department for Business, Innovation and Skills",UK Shared Business Services Ltd,26/08/2022,Computing Consumables,Production Services,Probrand Ltd,99789035,152.16,Computer Consumables,SMARTFORM
"Department for Business, Innovation and Skills",UK Shared Business Services Ltd,30/08/2022,Contract Staff,Production Services,Alexander Mann Solutions Ltd,99790025,"6,159.24",Recruitment Services,EC2N 3AQ
"Department for Business, Innovation and Skills",UK Shared Business Services Ltd,30/08/2022,Contract Staff,People,Alexander Mann Solutions Ltd,99790035,"10,775.02",Recruitment Services,EC2N 3AQ
"Department for Business, Innovation and Skills",UK Shared Business Services Ltd,30/08/2022,Contract Staff,Corporate HR,Alexander Mann Solutions Ltd,99790039,"3,780.36",Recruitment Services,EC2N 3AQ
"Department for Business, Innovation and Skills",UK Shared Business Services Ltd,30/08/2022,Contract Staff,Project Office,Alexander Mann Solutions Ltd,99790041,"3,649.14",Recruitment Services,EC2N 3AQ
"Department for Business, Innovation and Skills",UK Shared Business Services Ltd,30/08/2022,Contract Staff,Production Services,Alexander Mann Solutions Ltd,99790147,"7,945.56",Recruitment Services,EC2N 3AQ
"Department for Business, Innovation and Skills",UK Shared Business Services Ltd,30/08/2022,Contract Staff,SHARP,Alexander Mann Solutions Ltd,99790149,"3,387.66",Recruitment Services,EC2N 3AQ
"Department for Business, Innovation and Skills",UK Shared Business Services Ltd,30/08/2022,Computing Consumables,Production Services,Gemini Print Southern Ltd,99790218,918,Computer Consumables,BN43 6NZ
"Department for Business, Innovation and Skills",UK Shared Business Services Ltd,30/08/2022,T&S - Subsistence,Finance Operations 1,Unspecified,99790230,8.15,Evening Meal (Actuals),HOME
"Department for Business, Innovation and Skills",UK Shared Business Services Ltd,31/08/2022,Contract Staff,Professional Services,Hays Specialist Recruitment Ltd,99787311,"1,908.00",Recruitment Services,KT3 4QF
"Department for Business, Innovation and Skills",UK Shared Business Services Ltd,31/08/2022,UK - Professional Memberships & Subscriptions,Procurement Policy & Strategy,Dun & Bradstreet Ltd,99789191,516,Professional Memberships,W2 1AF
"Department for Business, Innovation and Skills",UK Shared Business Services Ltd,31/08/2022,UK - Professional Memberships & Subscriptions,Procurement Policy & Strategy,Dun & Bradstreet Ltd,99789192,168,Professional Memberships,W2 1AF
"Department for Business, Innovation and Skills",UK Shared Business Services Ltd,31/08/2022,UK - Professional Memberships & Subscriptions,Procurement Policy & Strategy,Dun & Bradstreet Ltd,99789194,264,Professional Memberships,W2 1AF
"Department for Business, Innovation and Skills",UK Shared Business Services Ltd,31/08/2022,Contract Staff,People,Alexander Mann Solutions Ltd,99790150,"2,126.47",Recruitment Services,EC2N 3AQ
"Department for Business, Innovation and Skills",UK Shared Business Services Ltd,31/08/2022,Contract Staff,Production Services,Hays Specialist Recruitment Ltd,99790520,"5,866.56",Recruitment Services,KT3 4QF
"Department for Business, Innovation and Skills",UK Shared Business Services Ltd,31/08/2022,Contract Staff,Production Services,Hays Specialist Recruitment Ltd,99790521,"5,587.20",Recruitment Services,KT3 4QF
"Department for Business, Innovation and Skills",UK Shared Business Services Ltd,31/08/2022,Contract Staff,Production Services,Hays Specialist Recruitment Ltd,99790527,"7,750.74",Recruitment Services,KT3 4QF
"Department for Business, Innovation and Skills",UK Shared Business Services Ltd,31/08/2022,Contract Staff,Production Services,Hays Specialist Recruitment Ltd,99790539,"6,754.90",Recruitment Services,KT3 4QF
"Department for Business, Innovation and Skills",UK Shared Business Services Ltd,31/08/2022,Contract Staff,Production Services,Hays Specialist Recruitment Ltd,99790541,"8,963.03",Recruitment Services,KT3 4QF
"Department for Business, Innovation and Skills",UK Shared Business Services Ltd,31/08/2022,Health & Safety (inc. Medicals & Opticians),Contact Centres,Unspecified,99790632,55,Medical Fees & Vaccinations (Actuals),HOME
"Department for Business, Innovation and Skills",UK Shared Business Services Ltd,31/08/2022,T&S - Mileage,"D&I Digital, Data & Analytics",Unspecified,99790633,63.23,Mileage - Car (excl Home to Office),HOME
"Department for Business, Innovation and Skills",UK Shared Business Services Ltd,24/08/2022,Bank Charges,Corporate Finance,,,847,Bank Charges,
